bitfinex-derivatives/quotes_SOLF0:USTF0_20220106
["timestamp","ask_amount","ask_price","bid_price","bid_amount"]
[1641489378297,27.66479,150.71,150.64,4.0]
[1641489378999,27.66479,150.71,150.62,74.13950056]
[1641489379200,34.16579,150.71,150.62,74.13950056]
[1641489379500,34.16579,150.71,150.62,67.5093]
[1641489380300,4.0,150.7,150.62,67.5093]
[1641489380699,4.0,150.68,150.58,127.5436]
[1641489380898,6.63547991,150.67,150.54,4.0]
[1641489381099,77.41617991,150.67,150.55,71.2892]
[1641489381300,77.41617991,150.67,150.52,62.2736]
[1641489381501,6.6370213,150.63,150.53,67.4615]
[1641489381699,27.66479,150.61,150.53,67.4615]
[1641489382299,27.66479,150.61,150.53,71.4615]
[1641489382499,13.8820213,150.63,150.53,71.4615]
[1641489382907,13.8820213,150.63,150.53,67.4615]
[1641489383300,13.8820213,150.63,150.54,4.0]
[1641489383500,7.245,150.63,150.53,67.4615]
[1641489383701,27.66479,150.64,150.53,71.4615]
[1641489383900,27.66479,150.64,150.56,27.66479]
[1641489386102,93.66349,150.67,150.56,27.66479]
[1641489386703,3.25811887,150.63,150.57,22.33359163]
[1641489387705,13.96712102,150.65,150.58,13.96712102]
[1641489387906,13.96712102,150.65,150.59,27.66479]
[1641489388706,13.96712102,150.64,150.6,1.42947493]
[1641489389507,13.96712102,150.62,150.57,1.42947493]
[1641489391807,13.96712102,150.62,150.59,27.66479]
[1641489392007,17.22523989,150.64,150.59,27.66479]
[1641489392608,17.22523989,150.64,150.57,22.33359161]
[1641489392807,17.22523989,150.64,150.57,15.39659595]
[1641489393008,13.96712102,150.63,150.6,1.42947493]
[1641489393907,17.22523989,150.66,150.57,1.42947493]
[1641489395908,17.22523989,150.66,150.61,27.66479]
[1641489396312,3.25811887,150.66,150.61,27.66479]
[1641489397512,3.25811887,150.66,150.58,63.8358]
[1641489397913,3.25811887,150.66,150.59,27.66479]
[1641489400617,13.96712102,150.65,150.6,1.42951965]
[1641489401418,17.22523989,150.66,150.6,1.42951965]
[1641489402318,13.96712102,150.65,150.6,1.42951965]
[1641489403319,17.22523989,150.66,150.6,1.42951965]
[1641489404421,3.25811887,150.66,150.61,13.96712102]
[1641489405424,13.96712102,150.67,150.62,4.0]
[1641489405726,13.96712102,150.67,150.61,5.42951965]
[1641489406124,13.96712102,150.67,150.64,27.66479]
[1641489406527,13.96712102,150.68,150.64,27.66479]
[1641489407225,27.66479,150.7,150.66,4.0]
[1641489407423,27.66479,150.7,150.64,27.66479]
[1641489407623,27.66479,150.7,150.64,31.66479]
[1641489407826,27.66479,150.7,150.64,27.66479]
[1641489408624,27.66479,150.7,150.64,31.66479]
[1641489409025,27.66479,150.7,150.66,4.0]
[1641489409226,27.66479,150.7,150.64,31.66479]
[1641489409626,27.66479,150.7,150.64,27.66479]
[1641489409826,27.66479,150.73,150.64,27.66479]
[1641489410025,27.66479,150.73,150.65,4.0]
[1641489410225,27.66479,150.73,150.64,27.66479]
[1641489410428,9e-05,150.73,150.7,4.0]
[1641489410628,37.53809383,150.76,150.7,8.39]
[1641489410829,37.53809383,150.76,150.7,4.39]
[1641489411026,37.53809383,150.76,150.7,8.39]
[1641489411227,37.53809383,150.79,150.7,8.39]
[1641489411428,37.53809383,150.79,150.71,71.7543]
[1641489411628,37.53809383,150.79,150.71,67.7543]
[1641489412131,37.53809383,150.79,150.76,27.66479]
[1641489412331,37.53809383,150.8,150.76,27.66479]
[1641489413431,37.53809383,150.82,150.76,27.66479]
[1641489414331,37.53809383,150.82,150.79,27.66479]
[1641489414535,37.53809383,150.83,150.79,27.66479]
[1641489415735,37.53809383,150.84,150.79,27.66479]
[1641489416335,37.53809383,150.84,150.79,55.32958]
[1641489416836,37.53809383,150.83,150.79,55.32958]
[1641489417744,37.53809383,150.84,150.79,55.32958]
[1641489418243,37.53809383,150.84,150.82,27.66479]
[1641489418442,37.53809383,150.84,150.79,27.66479]
[1641489419243,41.53809383,150.84,150.79,27.66479]
[1641489419444,37.53809383,150.84,150.79,27.66479]
[1641489420143,37.53809383,150.82,150.79,27.66479]
[1641489420343,37.53809383,150.82,150.79,55.32958]
[1641489421544,37.53809383,150.83,150.79,55.32958]
[1641489422147,41.53809383,150.83,150.79,27.66479]
[1641489422545,37.53809383,150.84,150.79,27.66479]
[1641489423946,37.53809383,150.83,150.79,27.66479]
[1641489425351,37.53809383,150.84,150.79,27.66479]
[1641489426251,37.53809383,150.83,150.79,27.66479]
[1641489427252,37.53809383,150.86,150.79,32.34653774]
[1641489427951,37.53809383,150.86,150.79,36.74553774]
[1641489428353,37.53809383,150.86,150.83,27.66479]
[1641489428554,49.32434711,150.86,150.83,32.64279]
[1641489429757,37.53809383,150.87,150.83,32.64279]
[1641489430356,37.53809383,150.87,150.86,27.66479]
[1641489431357,37.53809383,150.9,150.86,27.66479]
[1641489432363,37.53809383,150.89,150.86,55.32958]
[1641489434063,37.53809383,150.9,150.86,55.32958]
[1641489434864,37.53809383,150.9,150.86,47.84115601]
[1641489435463,37.53809383,150.89,150.86,47.84115601]
[1641489436463,37.53809383,150.9,150.86,47.84115601]
[1641489437064,37.53809383,150.89,150.86,47.84115601]
[1641489439069,14.0394137,150.87,150.86,47.84115601]
[1641489440769,13.4994137,150.87,150.86,47.84115601]
[1641489440973,37.53809383,150.9,150.86,51.84115601]
[1641489441270,28.55523583,150.92,150.86,53.28815601]
[1641489441271,14.0390725,150.88,150.86,53.28815601]
[1641489442071,37.53809383,150.91,150.86,53.28815601]
[1641489442269,28.55523583,150.92,150.86,47.84115601]
[1641489442270,37.53809383,150.92,150.86,47.84115601]
[1641489442469,37.53809383,150.92,150.91,27.66479]
[1641489443272,37.53809383,150.92,150.86,20.17636601]
[1641489443273,41.53809383,150.92,150.86,20.17636601]
[1641489443571,46.94909383,150.92,150.86,20.17636601]
[1641489444071,37.53809383,150.9,150.86,20.17636601]
[1641489445074,37.53809383,150.89,150.86,20.17636601]
[1641489445871,37.53809383,150.9,150.86,20.17636601]
[1641489447373,3.24667489,150.89,150.88,4.0]
[1641489447574,28.55523583,150.92,150.88,4.0]
[1641489447775,28.55523583,150.92,150.87,10.61922886]
[1641489447973,28.55523583,150.92,150.88,4.0]
[1641489448274,150.08577935,150.99,150.91,4.0]
[1641489448474,56.30714075,150.99,150.91,4.0]
[1641489448672,56.30714075,150.99,150.95,27.66479]
[1641489449373,4.0,150.99,150.95,27.66479]
[1641489450277,62.0721,151.0,150.95,27.66479]
[1641489450573,62.9276843,151.01,150.95,27.66479]
[1641489451873,6.62054355,151.01,150.95,27.66479]
[1641489452475,56.30714075,151.02,150.95,27.66479]
[1641489452675,56.30714075,151.01,150.95,55.32958]
[1641489453074,60.30714075,151.01,150.95,55.32958]
[1641489453274,4.0,151.0,150.95,55.32958]
[1641489453474,4.0,151.01,150.95,55.32958]
[1641489454275,56.30714075,151.0,150.95,55.32958]
[1641489455578,56.30714075,151.0,150.91,61.5115]
[1641489455976,56.30714075,151.01,150.91,65.5115]
[1641489456175,56.30714075,151.01,150.96,4.0]
[1641489456576,56.30714075,151.01,150.92,4.0]
[1641489456776,56.30714075,151.03,150.97,27.66479]
[1641489456977,60.30714075,151.03,150.97,27.66479]
[1641489457376,56.30714075,151.03,150.97,27.66479]
[1641489458378,56.30714075,151.03,150.97,34.90779]
[1641489459477,56.30714075,151.03,150.97,38.90779]
[1641489459879,56.30714075,151.05,150.97,38.90779]
[1641489460680,56.30714075,151.05,150.97,34.90779]
[1641489460880,56.30714075,151.05,151.02,27.66479]
[1641489466286,4.0,151.03,150.97,27.66479]
[1641489466486,4.0,151.01,150.97,27.66479]
[1641489466683,4.0,151.01,150.94,27.66479]
[1641489466885,4.0,151.0,150.94,27.66479]
[1641489467190,4.0,151.01,150.94,27.66479]
[1641489467785,65.9968,151.03,150.94,27.66479]
[1641489468588,37.41687129,151.0,150.94,27.66479]
[1641489470089,37.41687129,150.99,150.94,27.66479]
[1641489471892,14.03186365,150.96,150.94,31.66479]
[1641489472090,14.03186365,150.96,150.94,27.66479]
[1641489472792,14.03186365,150.98,150.94,32.34497302]
[1641489473594,14.03186365,150.97,150.94,27.66479]
[1641489474594,4.67666037,150.95,150.94,32.34497302]
[1641489475295,14.03186365,150.98,150.94,32.34497302]
[1641489475797,14.03186365,150.98,150.94,4.68018302]
[1641489477200,14.03186365,150.98,150.95,27.66479]
[1641489480205,14.03186365,150.99,150.96,4.68018302]
[1641489481708,18.03186365,150.99,150.96,4.68018302]
[1641489482007,4.0,150.98,150.96,4.68018302]
[1641489482308,11.215,150.98,150.96,1.43350813]
[1641489482507,4.0,150.97,150.92,14.03186365]
[1641489482709,4.0,150.95,150.89,14.03186365]
[1641489482908,65.0855,150.97,150.89,14.03186365]
[1641489483108,92.75029,150.97,150.89,41.69665365]
[1641489483711,14.03383238,150.95,150.89,27.66479]
[1641489484308,14.03383238,150.95,150.89,31.66479]
[1641489484509,14.03383238,150.95,150.89,27.66479]
[1641489485109,14.03383238,150.95,150.92,27.66479]
[1641489485313,14.03383238,150.95,150.92,34.77479]
[1641489485710,14.03383238,150.98,150.92,34.77479]
[1641489486510,14.03383238,150.98,150.92,27.66479]
[1641489487309,14.03383238,150.97,150.92,27.66479]
[1641489488310,14.03383238,150.97,150.93,4.0]
[1641489488510,14.03383238,150.97,150.93,10.843]
[1641489488711,14.03383238,150.97,150.93,6.843]
[1641489489212,14.03383238,150.99,150.96,27.66479]
[1641489491613,14.03383238,150.98,150.96,27.66479]
[1641489492617,52.40353326,151.02,150.97,4.0]
[1641489492815,52.40353326,151.02,150.97,9.328]
[1641489493115,52.40353326,151.02,150.97,5.328]
[1641489493517,52.40353326,151.02,151.01,27.66479]
[1641489493716,3.23567846,151.05,151.01,32.77479]
[1641489494817,14.98666197,151.06,151.01,32.77479]
[1641489495119,14.98666197,151.06,151.01,25.29452608]
[1641489495317,14.98666197,151.06,151.01,20.18452608]
[1641489497423,14.98666197,151.06,150.98,66.7456]
[1641489498424,14.98666197,151.06,150.99,1.44122922]
[1641489499523,14.98666197,151.06,151.02,27.66479]
[1641489500924,14.98666197,151.06,150.98,66.7456]
[1641489501726,52.40353326,151.06,150.99,1.44109828]
[1641489502127,4.0,151.05,150.99,1.44109828]
[1641489502326,52.40353326,151.06,150.99,1.44109828]
[1641489502526,4.0,151.04,150.99,1.44109828]
[1641489502728,8.589,151.04,150.99,1.44109828]
[1641489503126,4.0,151.0,150.99,1.44109828]
[1641489503326,4.0,151.0,150.92,37.41687129]
[1641489503327,8.49,151.0,150.92,37.41687129]
[1641489503527,4.0,150.97,150.89,129.59546129]
[1641489504827,15.75098351,150.97,150.89,92.17859]
[1641489507834,27.66479,150.95,150.89,92.17859]
[1641489508133,27.66479,150.95,150.89,27.66479]
[1641489510137,4.0,150.91,150.84,37.41687129]
[1641489510338,4.0,150.9,150.84,37.41687129]
[1641489510537,10.065,150.91,150.86,37.41687129]
[1641489511139,6.065,150.91,150.86,37.41687129]
[1641489511337,4.0,150.94,150.86,37.41687129]
[1641489511538,11.75577704,150.94,150.83,41.41687129]
[1641489511837,69.8017,150.93,150.87,27.66479]
[1641489512037,11.75577704,150.94,150.87,27.66479]
[1641489512439,27.66479,150.95,150.87,27.66479]
[1641489512639,31.66479,150.95,150.87,27.66479]
[1641489512940,27.66479,150.95,150.87,27.66479]
[1641489513538,27.66479,150.95,150.88,6.96027136]
[1641489517745,27.66479,150.95,150.87,27.66479]
[1641489518245,31.66479,150.95,150.87,27.66479]
[1641489518946,31.66479,150.95,150.88,6.96016106]
[1641489519849,27.66479,150.95,150.87,27.66479]
[1641489521149,102.36367129,150.97,150.87,27.66479]
[1641489521349,102.36367129,150.97,150.87,34.50979]
[1641489521550,4.0,150.96,150.87,34.50979]
[1641489521749,68.9468,150.97,150.88,6.96014195]
[1641489522351,64.9468,150.97,150.88,6.96014195]
[1641489522754,11.75217349,150.96,150.88,6.96014195]
[1641489523551,14.03411061,150.95,150.88,20.99425256]
[1641489524152,14.03411061,150.95,150.88,14.03411061]
[1641489525953,14.03411061,150.94,150.87,41.69890061]
[1641489526353,14.03411061,150.94,150.87,14.03411061]
[1641489527654,14.03411061,150.94,150.87,20.99427285]
[1641489530762,14.03411061,150.93,150.86,80.03921061]
[1641489531560,14.03411061,150.94,150.87,14.03411061]
[1641489531762,14.03411061,150.94,150.87,20.99429974]
[1641489532361,41.69890061,150.95,150.88,14.03411061]
[1641489532562,4.0,150.94,150.88,14.03411061]
[1641489533665,4.0,150.92,150.88,14.03411061]
[1641489533865,4.0,150.93,150.88,14.03411061]
[1641489534866,41.69890061,150.95,150.88,14.03411061]
[1641489535067,18.03411061,150.94,150.87,20.99429974]
[1641489536670,4.0,150.89,150.87,20.99429974]
[1641489536872,64.7926,150.93,150.87,20.99429974]
[1641489537170,4.0,150.91,150.87,20.99429974]
[1641489537370,4.0,150.91,150.86,20.99429974]
[1641489537971,4.0,150.91,150.86,14.03411061]
[1641489538171,31.66479,150.92,150.86,14.03411061]
[1641489538471,27.66479,150.92,150.86,14.03411061]
[1641489540673,45.69890061,150.92,150.85,20.99429974]
[1641489540873,52.76590061,150.92,150.85,20.99429974]
[1641489541575,4.0,150.9,150.85,20.99429974]
[1641489541774,4.0,150.89,150.85,20.99429974]
[1641489541975,4.0,150.88,150.85,20.99429974]
[1641489542174,8.417,150.88,150.85,20.99429974]
[1641489542375,4.417,150.88,150.85,20.99429974]
[1641489542574,8.417,150.88,150.85,20.99429974]
[1641489543075,8.417,150.88,150.87,4.67948972]
[1641489543677,4.417,150.88,150.87,4.67948972]
[1641489544075,7.65626333,150.88,150.87,4.67948972]
[1641489544275,3.23926333,150.88,150.87,4.67948972]
[1641489544675,3.23926333,150.88,150.87,9.23848972]
[1641489545676,17.27337394,150.91,150.87,10.67873846]
[1641489546378,17.27337394,150.91,150.87,9.23848972]
[1641489546577,3.23926333,150.91,150.87,4.559]
[1641489546780,3.23926333,150.91,150.85,4.67948972]
[1641489547281,31.66479,150.92,150.85,4.67948972]
[1641489547481,31.66479,150.92,150.86,4.67948972]
[1641489547680,27.66479,150.92,150.86,4.67948972]
[1641489548482,27.66479,150.92,150.87,4.67948972]
[1641489548682,31.66479,150.92,150.87,4.67948972]
[1641489549383,31.66479,150.92,150.88,4.67948972]
[1641489549583,27.66479,150.92,150.88,4.67948972]
[1641489549783,31.66479,150.92,150.88,4.67948972]
[1641489549983,31.66479,150.92,150.88,9.33048972]
[1641489550184,27.66479,150.92,150.88,9.33048972]
[1641489551087,27.66479,150.92,150.89,6.11421322]
[1641489551287,64.7926,150.93,150.89,6.11421322]
[1641489551488,27.66479,150.94,150.89,6.11421322]
[1641489551887,27.66479,150.94,150.9,4.67948972]
[1641489552589,31.66479,150.94,150.9,4.67948972]
[1641489554291,4.0,150.93,150.9,4.67948972]
[1641489554791,31.66479,150.94,150.9,4.67948972]
[1641489554990,3.23733265,150.92,150.9,4.67948972]
[1641489555991,4.0,150.93,150.87,1.4347235]
[1641489556897,3.23732848,150.92,150.9,4.67768263]
[1641489557593,4.0,150.93,150.87,1.4347235]
[1641489558197,3.23731811,150.92,150.9,4.67767399]
[1641489558998,4.0,150.93,150.87,1.4347235]
[1641489560099,3.23726277,150.92,150.9,4.67762788]
[1641489560998,3.23726501,150.93,150.87,1.4347235]
[1641489561700,7.23726501,150.93,150.87,1.4347235]
[1641489561900,4.0,150.93,150.87,1.4347235]
[1641489562199,18.03286028,150.93,150.9,4.67762009]
[1641489562599,14.03286028,150.93,150.9,4.67762009]
[1641489562799,31.66479,150.94,150.91,4.67761035]
[1641489562999,3.23724173,150.92,150.91,4.67761035]
[1641489563800,4.0,150.93,150.87,14.03411061]
[1641489563999,45.69762104,150.94,150.87,14.03411061]
[1641489564399,4.0,150.93,150.87,14.03411061]
[1641489564600,7.23767806,150.93,150.9,4.67797396]
[1641489565101,3.23767806,150.93,150.9,4.67797396]
[1641489565401,31.66479,150.94,150.87,14.03411061]
[1641489565603,3.23781625,150.92,150.86,14.03411061]
[1641489566202,7.23781625,150.92,150.86,14.03411061]
[1641489566403,4.0,150.92,150.9,4.67809109]
[1641489566702,9.24981862,150.93,150.9,4.67809109]
[1641489567203,6.012,150.93,150.86,14.03411061]
[1641489567402,3.2378241,150.91,150.86,14.03411061]
[1641489568005,64.3871,150.93,150.86,14.03411061]
[1641489568206,3.23781811,150.92,150.9,4.67809066]
[1641489569006,3.23781811,150.92,150.86,14.03411061]
[1641489569007,3.23751773,150.93,150.91,4.67784034]
[1641489569808,4.0,150.93,150.87,14.03411061]
[1641489570110,4.0,150.93,150.9,4.67795049]
[1641489570307,4.0,150.91,150.9,4.67795049]
[1641489570508,4.0,150.93,150.9,4.67795049]
[1641489570709,3.23176837,150.92,150.86,1.4347235]
[1641489570908,3.23176837,150.92,150.88,4.66944542]
[1641489571410,3.23176837,150.92,150.86,1.4347235]
[1641489571609,3.23180836,150.93,150.85,5.17760377]
[1641489572510,17.24014462,150.94,150.88,4.66941401]
[1641489573615,17.24014462,150.94,150.86,1.4347235]
[1641489574319,17.24014462,150.94,150.88,4.66935149]
[1641489575216,17.08014462,150.94,150.88,4.66935149]
[1641489575417,4.66923127,150.91,150.85,22.38982464]
[1641489576316,3.23180836,150.93,150.88,4.66752475]
[1641489577019,17.84833626,150.94,150.85,22.38982464]
[1641489577217,4.66752832,150.91,150.85,22.38982464]
[1641489578118,65.9257,150.95,150.85,8.38148838]
[1641489578618,27.66479,150.94,150.85,8.38148838]
[1641489578819,4.67831472,150.9,150.89,4.67831472]
[1641489579619,27.66479,150.94,150.85,8.38148838]
[1641489580119,31.66479,150.94,150.85,8.38148838]
[1641489580427,3.23789697,150.93,150.89,4.67837343]
[1641489581220,3.23789697,150.93,150.85,8.38148838]
[1641489582221,61.9257,150.95,150.85,8.38148838]
[1641489582222,61.9257,150.95,150.89,4.67831641]
[1641489582421,47.17687129,150.96,150.89,9.73631641]
[1641489582620,47.17687129,150.96,150.91,27.66479]
[1641489582821,37.41687129,150.96,150.92,4.67769359]
[1641489583023,3.23707115,150.94,150.92,4.67769359]
[1641489584128,37.41687129,150.99,150.91,27.66479]
[1641489584326,40.65332407,150.99,150.93,4.67717827]
[1641489584525,3.23645278,150.99,150.93,4.67717827]
[1641489584726,3.23645278,150.99,150.93,9.06317827]
[1641489585226,3.23645278,150.99,150.94,6.11786476]
[1641489586328,3.23645278,150.99,150.93,4.386]
[1641489586529,3.23645278,150.99,150.96,4.6766515]
[1641489587233,21.90699492,151.0,150.94,1.4408116]
[1641489587532,4.0,150.99,150.94,1.4408116]
[1641489587731,21.90699492,151.0,150.94,1.4408116]
[1641489588232,3.23625887,150.99,150.95,4.67701668]
[1641489588932,3.23625887,150.99,150.94,4.67708424]
[1641489589132,3.23625887,150.99,150.94,6.11782855]
[1641489590034,3.23625887,150.99,150.95,4.67706716]
[1641489590433,3.23625887,150.99,150.94,1.44074658]
[1641489591133,3.23625887,150.99,150.93,66.0795]
[1641489591335,3.23625887,150.99,150.95,4.67706108]
[1641489591933,3.23625887,150.99,150.96,4.67662286]
[1641489592735,11.74534382,151.02,150.95,27.66479]
[1641489593636,140.61606129,151.03,150.95,27.66479]
[1641489593837,3.20824988,151.02,150.95,20.18285572]
[1641489594336,103.19919,151.03,150.95,20.18285572]
[1641489596137,4.63714765,151.01,150.95,20.18285572]
[1641489597138,4.63714765,151.01,150.93,66.0795]
[1641489598742,4.63714765,151.01,150.94,27.66479]
[1641489599043,4.63714765,151.02,150.94,27.66479]
[1641489600145,107.83633765,151.03,150.94,27.66479]
[1641489600544,111.83633765,151.03,150.94,27.66479]
[1641489600947,111.83633765,151.03,150.98,4.63712644]
[1641489601146,14.97963142,151.02,150.98,4.63712644]
[1641489602548,18.97963142,151.02,150.98,4.63712644]
[1641489603151,3.23515466,151.01,150.98,4.63712644]
[1641489603352,4.0,151.0,150.98,4.63712644]
[1641489603551,3.23515466,151.01,150.98,4.63712644]
[1641489603752,7.23515466,150.99,150.98,4.63712644]
[1641489604152,7.23515466,150.99,150.95,1.44094185]
[1641489604352,4.0,150.96,150.95,1.44094185]
[1641489604552,8.679,150.96,150.88,66.7768]
[1641489604753,4.0,150.95,150.88,66.7768]
[1641489605753,4.679,150.96,150.91,14.03161227]
[1641489608755,4.679,150.96,150.89,22.4330415]
[1641489608756,3.23672558,150.95,150.89,22.4330415]
[1641489609355,3.23672558,150.95,150.89,26.4330415]
[1641489609556,3.23672558,150.95,150.89,22.4330415]
[1641489609857,17.26833785,150.97,150.9,14.03161227]
[1641489610759,37.41687129,151.01,150.94,27.66479]
[1641489610960,37.41687129,151.01,150.94,39.51995329]
[1641489611159,14.03028833,150.99,150.94,39.51995329]
[1641489611360,14.03028833,150.99,150.94,43.51995329]
[1641489612160,37.41687129,151.02,150.94,43.51995329]
[1641489612360,9.94,151.06,150.95,6.96053109]
[1641489612768,9.94,151.06,150.98,27.66479]
[1641489612963,9.94,151.06,150.98,32.53379]
[1641489613164,9.94,151.06,150.98,36.53379]
[1641489614263,9.94,151.06,150.99,10.96053109]
[1641489614464,9.94,151.06,151.0,4.0]
[1641489615163,9.94,151.06,151.01,4.0]
[1641489615365,9.94,151.06,151.02,4.0]
[1641489615563,11.73834169,151.08,151.05,4.0]
[1641489615769,11.73834169,151.08,151.04,4.0]
[1641489615964,37.41687129,151.09,151.04,4.0]
[1641489616166,37.41687129,151.09,151.06,4.0]
[1641489616364,37.41687129,151.09,151.06,6.355]
[1641489616565,37.41687129,151.13,151.06,6.355]
[1641489617567,37.41687129,151.11,151.04,27.66479]
[1641489618667,37.41687129,151.1,151.04,27.66479]
[1641489619266,37.41687129,151.11,151.01,4.0]
[1641489619969,41.41687129,151.11,151.0,61.8192]
[1641489620572,37.41687129,151.11,151.0,61.8192]
[1641489620773,27.66479,151.1,151.01,27.66479]
[1641489620972,27.66479,151.1,151.01,34.70979]
[1641489621172,37.41687129,151.11,151.03,4.0]
[1641489621372,37.41687129,151.11,151.04,4.0]
[1641489621573,37.41687129,151.11,151.01,34.70979]
[1641489621772,37.41687129,151.11,151.03,4.0]
[1641489621971,37.41687129,151.11,151.02,4.0]
[1641489622173,37.41687129,151.11,151.03,4.0]
[1641489622473,16.70458319,151.14,151.1,4.0]
[1641489622773,16.70458319,151.14,151.13,27.66479]
[1641489622972,56.30714075,151.19,151.13,27.66479]
[1641489623175,56.30714075,151.19,151.13,31.66479]
[1641489623373,56.30714075,151.19,151.18,4.0]
[1641489623572,56.30714075,151.19,151.16,9.517]
[1641489623773,56.30714075,151.19,151.16,5.517]
[1641489624272,16.68404451,151.27,151.17,4.0]
[1641489624473,16.68404451,151.27,151.19,4.0]
[1641489624873,16.68404451,151.27,151.21,27.66479]
[1641489625073,16.68404451,151.27,151.21,33.71379]
[1641489625472,16.68404451,151.29,151.21,33.71379]
[1641489626472,27.66479,151.3,151.21,37.71379]
[1641489626773,27.66479,151.3,151.21,33.71379]
[1641489628176,27.66479,151.3,151.22,4.0]
[1641489628379,83.97193075,151.3,151.21,33.71379]
[1641489629377,27.66479,151.3,151.21,33.71379]
[1641489630282,83.97193075,151.3,151.21,33.71379]
[1641489630882,87.97193075,151.3,151.21,33.71379]
[1641489631179,4.0,151.29,151.21,27.66479]
[1641489631380,4.0,151.29,151.18,27.66479]
[1641489631581,60.30714075,151.29,151.18,27.66479]
[1641489631783,4.0,151.27,151.18,27.66479]
[1641489632584,56.30714075,151.28,151.18,27.66479]
[1641489632784,27.66479,151.27,151.18,27.66479]
[1641489636589,11.70943,151.26,151.18,27.66479]
[1641489636990,11.70943,151.26,151.19,4.0]
[1641489637191,11.70943,151.26,151.21,4.0]
[1641489637390,11.70943,151.26,151.22,4.0]
[1641489638391,11.70943,151.26,151.22,6.60371129]
[1641489638792,11.70943,151.29,151.22,10.60371129]
[1641489638992,11.70943,151.29,151.24,27.66479]
[1641489639192,11.70943,151.29,151.24,34.55479]
[1641489639592,11.70943,151.29,151.24,38.55479]
[1641489639993,11.70943,151.33,151.25,4.0]
[1641489640194,11.70943,151.33,151.24,38.55479]
[1641489640393,11.70943,151.33,151.25,4.0]
[1641489640593,11.70943,151.33,151.27,4.0]
[1641489640796,11.70943,151.33,151.25,4.0]
[1641489640995,11.70943,151.33,151.27,27.66479]
[1641489641800,11.70943,151.33,151.24,27.66479]
[1641489641997,18.93743,151.33,151.24,27.66479]
[1641489642198,14.00123614,151.3,151.24,27.66479]
[1641489643198,14.00123614,151.27,151.24,27.66479]
[1641489644399,14.00123614,151.26,151.24,27.66479]
[1641489644997,19.95623614,151.26,151.24,27.66479]
[1641489645398,5.955,151.26,151.24,27.66479]
[1641489646700,14.00123614,151.27,151.24,27.66479]
[1641489647502,14.00123614,151.27,151.2,18.00123614]
[1641489647701,14.00123614,151.27,151.21,4.0]
[1641489648201,14.00123614,151.27,151.22,4.0]
[1641489648702,14.00123614,151.28,151.21,18.00123614]
[1641489648901,14.00123614,151.28,151.22,27.66479]
[1641489649603,4.0,151.27,151.21,14.00123614]
[1641489649805,4.0,151.26,151.2,14.00123614]
[1641489650005,14.00123614,151.27,151.2,14.00123614]
[1641489650705,14.00123614,151.24,151.17,14.00123614]
[1641489650906,14.00123614,151.24,151.2,27.66479]
[1641489651105,14.00123614,151.24,151.17,41.66602614]
[1641489651707,37.34517435,151.27,151.17,27.66479]
[1641489651708,14.00123614,151.23,151.17,27.66479]
[1641489652509,14.00123614,151.24,151.18,1.44376221]
[1641489653408,14.00123614,151.24,151.17,27.66479]
[1641489653610,14.00123614,151.23,151.17,27.66479]
[1641489654610,14.00123614,151.23,151.17,20.19356046]
[1641489655110,14.00123614,151.22,151.18,1.44658339]
[1641489655711,14.00123614,151.22,151.19,4.0]
[1641489656411,14.00123614,151.22,151.18,1.44658339]
[1641489656813,14.00123614,151.25,151.2,1.44658339]
[1641489657714,14.00123614,151.24,151.18,1.44658339]
[1641489659415,14.00123614,151.23,151.18,1.44658339]
[1641489660415,14.00123614,151.24,151.18,1.44658339]
[1641489661015,14.00123614,151.23,151.18,1.44658339]
[1641489665019,4.66953421,151.2,151.19,4.66953421]
[1641489665817,4.66953421,151.2,151.18,1.44658339]
[1641489668321,4.66953421,151.2,151.19,4.6691382]
[1641489668722,37.34517435,151.26,151.19,35.27350369]
[1641489668921,29.34517435,151.26,151.24,4.0]
[1641489669121,48.30714075,151.31,151.25,65.93111156]
[1641489669323,44.48714075,151.31,151.25,65.93111156]
[1641489669521,44.48714075,151.31,151.27,4.0]
[1641489669721,43.58714075,151.31,151.27,4.0]
[1641489669923,43.58714075,151.31,151.26,4.0]
[1641489670122,43.58714075,151.31,151.25,65.93111156]
[1641489670321,4.0,151.36,151.25,61.93111156]
[1641489670822,4.0,151.32,151.25,55.32958]
[1641489671023,4.0,151.3,151.21,6.6041474]